bitfinex-derivatives/quotes_SOLF0:USTF0_20251216
["timestamp","ask_amount","ask_price","bid_price","bid_amount"]
[1765897040622,73.8979638,128.51,128.47,1.8965967]
[1765897040827,82.84985126,128.51,128.47,1.8965967]
[1765897041122,0.05389119,128.5,128.48,0.05872127]
[1765897041325,5.64577865,128.5,128.48,0.05872127]
[1765897042131,7.0084,128.46,128.4,7.0114]
[1765897042323,5.59188746,128.45,128.42,1.90220868]
[1765897042832,71.69188746,128.46,128.43,1.90220868]
[1765897043135,71.74333595,128.46,128.43,1.95139696]
[1765897043333,71.74333595,128.46,128.44,1.90228239]
[1765897043535,66.15144849,128.46,128.44,1.90228239]
[1765897044224,75.10333595,128.46,128.43,0.04918828]
[1765897044426,15.96078746,128.45,128.43,0.04918828]
[1765897044636,8.95188746,128.44,128.43,0.04918828]
[1765897044836,3.36,128.39,128.3,112.1939]
[1765897045132,3.36,128.37,128.35,1.90552728]
[1765897045334,3.36,128.36,128.28,3.04]
[1765897045632,7.0144,128.35,128.29,7.0171]
[1765897045837,7.7979638,128.42,128.35,3.04]
[1765897046023,7.7979638,128.42,128.37,1.90457737]
[1765897046024,3.41162845,128.4,128.37,1.90457737]
[1765897046225,125.89621116,128.39,128.32,3.04]
[1765897046433,3.41872898,128.37,128.34,1.90517315]
[1765897046732,3.36,128.36,128.28,3.04]
[1765897046931,0.0573209,128.33,128.29,3.04]
[1765897047237,66.1573209,128.33,128.29,3.04]
[1765897048238,66.1573209,128.33,128.32,1.90581648]
[1765897048439,66.1573209,128.33,128.31,1.90581648]
[1765897048730,66.1573209,128.33,128.29,3.04]
[1765897048929,66.1573209,128.33,128.31,1.90408194]
[1765897049129,69.5173209,128.33,128.31,1.90408194]
[1765897049327,3.36,128.32,128.31,1.90408194]
[1765897049523,73.1728209,128.33,128.31,1.90408194]
[1765897049835,7.0165,128.31,128.29,1.90408194]
[1765897050134,3.36,128.3,128.22,112.2613]
[1765897050341,3.36,128.28,128.27,1.90483072]
[1765897050541,3.36,128.27,128.18,112.2912]
[1765897050832,0.04935966,128.24,128.19,3.04]
[1765897051028,66.12,128.23,128.19,3.04]
[1765897051538,66.12,128.23,128.2,3.04]
[1765897051840,66.12,128.23,128.22,1.90207639]
[1765897052026,66.12,128.23,128.19,3.04]
[1765897052230,66.12,128.23,128.22,1.90238525]
[1765897052935,0.04935966,128.24,128.22,3.04]
[1765897053137,0.04935966,128.24,128.23,4.9395837]
[1765897053438,66.14,128.3,128.24,3.04]
[1765897053640,66.14,128.3,128.27,1.89573124]
[1765897054237,0.05814188,128.3,128.28,3.05]
[1765897054832,0.05814188,128.3,128.29,3.05]
[1765897055133,0.05814188,128.3,128.28,7.0178]
[1765897055434,0.05814188,128.3,128.29,3.05]
[1765897055933,0.05814188,128.3,128.28,7.0178]
[1765897056140,0.05814188,128.3,128.27,3.09935966]
[1765897057034,0.05814188,128.3,128.27,0.04935966]
[1765897057242,0.05814188,128.3,128.29,1.89324214]
[1765897057442,0.05814188,128.3,128.28,1.89324214]
[1765897057642,0.05814188,128.3,128.27,0.04935966]
[1765897057841,0.05814188,128.3,128.28,1.89323322]
[1765897058042,3.23814188,128.3,128.28,1.89323322]
[1765897058245,0.05814188,128.3,128.28,1.89285778]
[1765897058636,0.05814188,128.3,128.29,1.89285778]
[1765897058843,0.05814188,128.3,128.27,3.09935966]
[1765897059535,0.05814188,128.3,128.29,1.89131792]
[1765897059742,3.23814188,128.3,128.27,0.04935966]
[1765897060144,10.25534188,128.3,128.27,0.04935966]
[1765897060441,0.05814188,128.3,128.27,0.04935966]
[1765897061035,0.05814188,128.3,128.28,1.89009082]
[1765897061234,66.21814188,128.3,128.28,1.89009082]
[1765897061433,0.05814188,128.3,128.28,1.89009082]
[1765897061633,0.05814188,128.3,128.29,1.89009082]
[1765897061836,0.05814188,128.3,128.28,3.05]
[1765897062943,0.05814188,128.3,128.29,1.88909035]
[1765897064637,114.71162462,128.38,128.29,114.09969035]
[1765897064638,10.9779638,128.38,128.29,114.09969035]
[1765897064943,10.9779638,128.38,128.35,1.88909035]
[1765897064944,69.34,128.38,128.35,1.88909035]
[1765897065149,66.16,128.38,128.32,2.99]
[1765897065333,66.16,128.38,128.35,1.88665835]
[1765897065842,66.21001543,128.38,128.35,4.93421318]
[1765897066043,66.21001543,128.38,128.37,1.88665835]
[1765897066346,66.21001543,128.38,128.35,3.04755483]
[1765897066653,66.21001543,128.38,128.35,0.05755483]
[1765897066951,66.21001543,128.38,128.37,1.88585206]
[1765897067141,66.21001543,128.38,128.35,7.07165483]
[1765897067142,66.21001543,128.38,128.35,10.06165483]
[1765897067343,66.21001543,128.38,128.36,2.99]
[1765897067740,66.21001543,128.38,128.36,10.0036]
[1765897068341,3.18,128.37,128.35,0.05755483]
[1765897068549,66.21001543,128.38,128.36,1.88710969]
[1765897068748,66.21001543,128.38,128.35,0.05755483]
[1765897068948,69.39001543,128.38,128.35,0.05755483]
[1765897069354,3.18,128.37,128.35,0.05755483]
[1765897070051,3.18,128.36,128.35,0.05755483]
[1765897071045,7.015,128.34,128.25,109.19]
[1765897071246,69.32,128.33,128.3,1.89173014]
[1765897071458,3.18,128.32,128.27,7.0183]
[1765897071651,3.18,128.32,128.29,1.89356743]
[1765897072154,3.23852212,128.32,128.29,1.94351414]
[1765897072356,0.05852212,128.32,128.29,0.04994671]
[1765897072551,3.23852212,128.32,128.29,1.94524314]
[1765897072754,3.23852212,128.32,128.29,0.04994671]
[1765897072957,3.18,128.31,128.29,0.04994671]
[1765897073755,0.05852212,128.32,128.29,0.04994671]
[1765897073959,0.05852212,128.32,128.3,1.89590443]
[1765897074160,0.05852212,128.32,128.31,1.89590443]
[1765897074462,66.14,128.37,128.31,2.99]
[1765897074763,69.32,128.37,128.34,1.89403696]
[1765897074960,3.18,128.36,128.33,1.89403696]
[1765897075165,3.18,128.36,128.33,1.89419836]
[1765897075461,10.24891897,128.36,128.33,1.94648135]
[1765897075662,10.24891897,128.36,128.33,0.05228299]
[1765897075856,10.24891897,128.36,128.33,1.94603973]
[1765897076058,10.24891897,128.36,128.33,0.05228299]
[1765897076359,3.18,128.35,128.33,1.94616294]
[1765897076665,3.18,128.35,128.33,0.05228299]
[1765897076963,0.05511897,128.36,128.33,1.94681027]
[1765897077167,0.05511897,128.36,128.34,1.89452728]
[1765897077168,3.23511897,128.36,128.34,1.89452728]
[1765897077354,0.05511897,128.36,128.33,0.05228299]
[1765897077555,0.05511897,128.36,128.34,1.89379285]
[1765897078258,3.23511897,128.36,128.34,1.89379285]
[1765897078658,0.05511897,128.36,128.34,1.89379285]
[1765897078859,3.23511897,128.36,128.33,0.05228299]
[1765897080159,0.05511897,128.36,128.33,3.04228299]
[1765897080463,0.05511897,128.36,128.34,2.99]
[1765897080667,0.05511897,128.36,128.35,1.89323743]
[1765897080857,8.8227259,128.42,128.35,4.88323743]
[1765897081165,3.18,128.4,128.36,1.89323743]
[1765897081357,3.18,128.4,128.37,1.89323743]
[1765897081556,66.16,128.41,128.38,1.89279812]
[1765897081864,66.16,128.41,128.38,0.04976198]
[1765897082060,0.05728013,128.41,128.4,1.8923644]
[1765897082660,0.05728013,128.41,128.38,0.04976198]
[1765897083272,0.05728013,128.41,128.39,1.89333756]
[1765897083457,3.18,128.4,128.38,0.04976198]
[1765897083861,0.05728013,128.41,128.38,0.04976198]
[1765897084060,0.05728013,128.41,128.39,1.89401095]
[1765897084458,0.05728013,128.41,128.38,3.03976198]
[1765897084459,69.25,128.41,128.4,8.09e-05]
[1765897084756,3.11,128.4,128.38,0.04976198]
[1765897085168,3.11,128.45,128.38,112.12506198]
[1765897085466,0.05154036,128.43,128.39,2.99]
[1765897085659,0.05154036,128.43,128.4,3.04560404]
[1765897086866,0.05154036,128.43,128.42,1.8960497]
[1765897088071,0.05154036,128.43,128.41,1.8960497]
[1765897089074,3.16154036,128.43,128.41,1.8960497]
[1765897089257,3.16154036,128.43,128.4,0.05560404]
[1765897089564,69.28154036,128.43,128.4,0.05560404]
[1765897089768,3.11,128.42,128.4,0.05560404]
[1765897089966,10.1205,128.42,128.4,0.05560404]
[1765897090171,3.11,128.41,128.4,0.05560404]
[1765897090359,3.11,128.41,128.34,109.1189]
[1765897090567,69.23,128.43,128.38,11.9603323]
[1765897090867,66.12,128.43,128.4,1.8978323]
[1765897091069,66.12,128.43,128.38,3.05]
[1765897091371,66.12,128.43,128.35,109.1082]
[1765897091372,3.16082151,128.42,128.4,1.89671213]
[1765897091772,0.05082151,128.42,128.4,1.89671213]
[1765897091969,3.11,128.41,128.39,0.0561034]
[1765897092174,15.78932777,128.4,128.32,3.05]
[1765897092864,3.11,128.39,128.32,3.05]
[1765897093061,66.12,128.38,128.34,1.89880744]
[1765897093375,0.05432157,128.37,128.36,1.89880744]
[1765897093670,0.05432157,128.37,128.35,0.05308016]
[1765897093671,3.16432157,128.37,128.35,0.05308016]
[1765897094276,10.17762157,128.37,128.35,0.05308016]
[1765897094569,0.05432157,128.37,128.35,0.05308016]
[1765897094766,3.16432157,128.37,128.35,0.05308016]
[1765897095374,0.05432157,128.37,128.35,0.05308016]
[1765897095769,3.16432157,128.37,128.35,0.05308016]
[1765897095973,10.17752157,128.37,128.35,0.05308016]
[1765897096870,3.16432157,128.37,128.35,0.05308016]
[1765897097576,0.05432157,128.37,128.36,1.90158964]
[1765897097963,0.05432157,128.37,128.36,3.1]
[1765897099577,66.14,128.43,128.39,10.0616]
[1765897099765,66.14,128.43,128.41,1.8995943]
[1765897099972,66.14,128.43,128.42,1.8995943]
[1765897100172,25.99479233,128.47,128.41,3.05]
[1765897100376,3.11,128.5,128.44,3.05]
[1765897100581,10.17143378,128.48,128.46,0.05450665]
[1765897100772,62.75413378,128.49,128.46,3.10450665]
[1765897101073,3.11,128.54,128.46,3.10450665]
[1765897101278,69.25,128.55,128.49,1.89334348]
[1765897101486,3.11,128.54,128.5,1.89334348]
[1765897101681,3.11,128.54,128.46,112.0656]
[1765897101978,0.0513285,128.51,128.49,0.04986281]
[1765897102871,0.0513285,128.51,128.49,7.05626281]
[1765897103188,3.1613285,128.51,128.49,0.04986281]
[1765897103384,3.1613285,128.51,128.5,1.88863538]
[1765897103678,3.11,128.5,128.49,0.04986281]
[1765897103885,3.11,128.48,128.39,7.0118]
[1765897104071,3.11,128.48,128.35,109.1044]
[1765897104072,3.11,128.44,128.43,0.00170682]
[1765897104390,3.11,128.43,128.34,1.55]
[1765897104574,3.11,128.43,128.35,7.014]
[1765897104882,0.05910879,128.4,128.38,0.05324329]
[1765897105282,0.05910879,128.4,128.39,1.89412987]
[1765897105483,0.05910879,128.4,128.38,0.05324329]
[1765897105781,0.05910879,128.4,128.38,1.60324329]
[1765897106879,0.05910879,128.4,128.39,1.55]
[1765897108376,66.12,128.44,128.39,1.55]
[1765897108678,66.12,128.44,128.42,1.89498905]
[1765897108880,66.12,128.44,128.43,1.89498905]
[1765897109079,66.12,128.44,128.39,1.55]
[1765897109280,3.11,128.47,128.43,1.89465936]
[1765897109478,0.05965176,128.46,128.44,1.94745871]
[1765897109684,0.05965176,128.46,128.45,1.89465936]
[1765897109882,0.05965176,128.46,128.44,0.05279935]
[1765897110078,0.05965176,128.46,128.45,1.89442779]
[1765897110477,3.16965176,128.46,128.44,0.05279935]
[1765897111685,69.21,128.45,128.44,0.00279935]
[1765897111893,3.11,128.43,128.35,3.28]
[1765897112191,3.11,128.4,128.37,1.89685152]
[1765897112388,3.11,128.39,128.31,3.28]
[1765897112691,3.11,128.39,128.35,1.89825802]
[1765897112894,0.05261788,128.36,128.35,1.89825802]
[1765897113390,0.05261788,128.36,128.34,0.05873937]
[1765897113885,0.05261788,128.36,128.35,1.89904345]
[1765897114086,0.05261788,128.36,128.34,0.05873937]
[1765897114287,3.12261788,128.36,128.34,0.05873937]
[1765897114596,0.05261788,128.36,128.34,0.05873937]
[1765897115684,0.05261788,128.36,128.35,1.89893083]
[1765897116378,0.05261788,128.36,128.34,7.07333937]
[1765897116892,0.05261788,128.36,128.35,3.35]
[1765897117089,109.0396,128.44,128.35,3.35]
[1765897117090,3.07,128.45,128.37,3.35]
[1765897117281,3.07,128.45,128.41,1.89692507]
[1765897118090,3.07,128.43,128.42,0.05332273]
[1765897118391,0.05923241,128.44,128.42,0.05332273]
[1765897118592,3.12923241,128.44,128.42,0.05332273]
[1765897118792,10.13873241,128.44,128.42,0.05332273]
[1765897118994,3.07,128.43,128.42,0.05332273]
[1765897119397,3.07,128.43,128.35,109.1046]
[1765897119696,69.19,128.42,128.39,1.89957895]
[1765897120295,69.24002293,128.42,128.39,1.95834212]
[1765897120480,69.24002293,128.42,128.39,0.05876317]
[1765897120683,69.24002293,128.42,128.39,1.95785773]
[1765897120887,66.17002293,128.42,128.4,5.24902085]
[1765897121198,0.05002293,128.42,128.4,3.35]
[1765897122293,0.05002293,128.42,128.39,0.05876317]
[1765897122598,0.05002293,128.42,128.41,1.89929933]
[1765897123092,0.05002293,128.42,128.4,10.3614]
[1765897123304,0.05002293,128.42,128.41,3.35]
[1765897123793,0.05002293,128.42,128.4,10.3614]
[1765897124002,7.03646412,128.49,128.43,10.3597]
[1765897124296,69.19,128.51,128.45,1.89817033]
[1765897124499,66.12,128.51,128.46,5.24817033]
[1765897124695,66.12,128.51,128.47,1.89817033]
[1765897124899,69.19,128.51,128.48,1.89817033]
[1765897125199,69.24583902,128.51,128.48,0.05711307]
[1765897125499,69.24583902,128.51,128.48,1.95169685]
[1765897125695,3.07,128.5,128.48,0.05711307]
[1765897126291,3.07,128.5,128.43,7.0097]
[1765897126292,3.07,128.49,128.43,7.0097]
[1765897126498,3.07,128.48,128.45,1.89529858]
[1765897127502,3.07,128.47,128.45,1.9499747]
[1765897127686,3.12244386,128.48,128.45,0.05467612]
[1765897127997,3.07,128.47,128.45,0.05467612]
[1765897128392,0.05244386,128.48,128.45,0.05467612]
[1765897128704,3.12244386,128.48,128.45,0.05467612]
[1765897129293,0.05244386,128.48,128.45,0.05467612]
[1765897129499,0.05244386,128.48,128.46,1.89649919]
[1765897129998,0.05244386,128.48,128.46,5.24649919]
[1765897130305,0.05244386,128.48,128.45,3.40467612]
[1765897130793,0.05244386,128.48,128.45,112.42677612]
[1765897130993,3.07,128.56,128.48,3.35]
[1765897131196,3.07,128.54,128.51,1.89318909]
[1765897131602,3.07,128.54,128.47,7.0075]
[1765897131798,3.07,128.54,128.49,1.89425185]
[1765897132001,3.12075785,128.53,128.5,0.04929454]
[1765897132189,10.12545785,128.53,128.5,0.04929454]
[1765897132806,0.05075785,128.53,128.5,0.04929454]
[1765897134001,3.12075785,128.53,128.5,0.04929454]
[1765897135407,3.07,128.51,128.5,0.04929454]
[1765897135610,3.12075785,128.53,128.5,0.04929454]
[1765897136812,3.07,128.51,128.5,0.04929454]
[1765897137411,7.79321189,128.52,128.5,0.04929454]
[1765897137606,0.05075785,128.53,128.5,0.04929454]
[1765897138110,0.05075785,128.53,128.51,1.89063931]
[1765897138609,0.05075785,128.53,128.52,1.89063931]
[1765897138905,0.05075785,128.53,128.51,7.0053]
[1765897139102,0.05075785,128.53,128.52,1.89019936]
[1765897139999,0.05075785,128.53,128.52,5.24019936]
[1765897140207,0.05075785,128.53,128.52,3.35]
[1765897140603,7.79321189,128.58,128.53,10.3543]
[1765897140804,3.07,128.58,128.54,1.88932588]
[1765897141206,3.07,128.58,128.53,5.23932588]
[1765897141413,3.07,128.58,128.54,1.88932588]
[1765897141712,3.12896153,128.57,128.55,0.05613509]
[1765897141912,0.05896153,128.57,128.55,3.40317251]
[1765897142103,3.07,128.63,128.56,1.88869677]
[1765897142300,3.07,128.63,128.59,1.88869677]
[1765897142504,73.0774,128.66,128.6,1.88869677]
[1765897142702,66.08,128.66,128.62,3.35]
[1765897142906,66.08,128.66,128.64,1.88869677]
[1765897143102,3.07,128.65,128.64,0.05810697]
[1765897143815,3.27,128.65,128.64,0.05810697]
[1765897144312,3.27,128.65,128.58,3.35]
[1765897144517,3.27,128.65,128.61,1.88100677]
[1765897145307,3.27,128.65,128.62,0.05281338]
[1765897145308,112.19112782,128.64,128.62,0.05281338]
[1765897145502,3.27,128.63,128.62,0.00281338]
[1765897146107,0.05512782,128.64,128.62,0.00281338]
[1765897146512,3.32512782,128.64,128.62,0.00281338]
[1765897146713,0.05512782,128.64,128.62,0.00281338]
[1765897146913,3.32512782,128.64,128.62,0.00281338]
[1765897147819,10.32382782,128.64,128.62,0.00281338]
[1765897148120,3.27,128.63,128.55,7.003]
[1765897148313,3.27,128.61,128.57,1.87760298]
[1765897148515,3.27,128.6,128.51,3.32]
[1765897148709,3.27,128.6,128.57,1.87761605]
[1765897148911,3.27,128.6,128.51,3.32]
[1765897148912,3.27,128.6,128.56,1.87761605]
[1765897149115,0.05831243,128.59,128.57,0.05861024]
[1765897150119,0.05831243,128.59,128.58,1.87692029]
[1765897150316,66.04,128.61,128.59,3.32]
[1765897150526,66.04,128.61,128.6,1.87520848]
[1765897151020,3.27,128.6,128.59,1.87520848]
[1765897151222,66.04,128.61,128.57,3.37861024]
[1765897151517,66.09242633,128.61,128.59,1.87633264]
[1765897151725,66.09242633,128.61,128.57,0.05861024]
[1765897151924,66.09242633,128.61,128.58,1.87685113]
[1765897152324,66.09242633,128.61,128.59,1.87685113]
[1765897152512,66.09242633,128.61,128.57,0.05861024]
[1765897152718,66.09242633,128.61,128.59,1.87582027]
[1765897152918,0.05242633,128.61,128.6,3.32]
[1765897153118,0.05242633,128.61,128.57,3.37861024]
[1765897153725,0.05242633,128.61,128.59,3.32]
[1765897154223,0.05242633,128.61,128.57,10.37981024]
[1765897154427,0.05242633,128.61,128.6,1.8738007]
[1765897155830,0.05242633,128.61,128.59,1.8738007]
[1765897156128,3.32242633,128.61,128.59,1.8738007]
[1765897156335,3.32242633,128.61,128.57,0.05861024]
[1765897156336,3.27,128.59,128.57,0.05861024]
[1765897157334,3.27,128.58,128.57,0.05861024]
[1765897157628,73.04,128.6,128.57,3.37861024]
[1765897157826,66.04,128.6,128.57,0.05861024]
[1765897158229,66.04,128.6,128.58,1.875452]
[1765897158428,0.05242633,128.61,128.59,1.875452]
[1765897158634,0.05242633,128.61,128.6,1.87351501]
[1765897159033,0.05242633,128.61,128.58,3.32]
[1765897159338,3.32242633,128.61,128.6,1.87329492]
[1765897159832,3.32242633,128.61,128.57,0.05861024]
[1765897160029,0.05242633,128.61,128.59,1.87442499]
[1765897160229,3.32242633,128.61,128.59,1.87442499]
[1765897160425,0.05242633,128.61,128.59,1.87442499]
[1765897160729,3.32242633,128.61,128.59,1.87442499]
[1765897161339,0.05242633,128.61,128.59,1.87442499]
[1765897161544,0.05242633,128.61,128.6,1.87442499]
[1765897162635,3.32242633,128.61,128.59,1.87442499]
[1765897163121,10.32192633,128.61,128.59,1.87442499]
[1765897163324,0.05242633,128.61,128.57,0.05861024]
[1765897163531,0.05242633,128.61,128.58,1.87977799]
[1765897163735,0.05242633,128.61,128.59,1.87977799]
[1765897163931,0.05242633,128.61,128.57,3.37861024]
[1765897164235,3.27,128.6,128.58,1.87933008]
[1765897164538,69.29,128.59,128.58,1.87933008]
[1765897164734,69.29,128.59,128.57,0.05861024]
[1765897164936,3.27,128.58,128.57,0.05861024]
[1765897165636,76.2906,128.59,128.57,0.05861024]
[1765897166629,73.0206,128.59,128.57,0.05861024]
[1765897166830,3.27,128.58,128.57,0.05861024]
[1765897167537,80.80433286,128.59,128.57,0.05861024]
[1765897167737,3.27,128.58,128.57,0.05861024]
[1765897168338,80.80433286,128.59,128.57,0.05861024]
[1765897168537,84.07433286,128.59,128.57,0.05861024]
[1765897168926,3.27,128.58,128.57,0.05861024]
[1765897174526,86.45910581,128.59,128.57,0.05861024]
[1765897174728,77.04373286,128.59,128.57,0.05861024]
[1765897175130,3.24,128.58,128.57,0.05861024]
[1765897175536,84.04423286,128.59,128.57,0.05861024]
[1765897176146,7.001,128.58,128.57,0.05861024]
[1765897176444,3.24,128.57,128.5,3.17]
[1765897176647,3.24,128.57,128.44,498.1068]
[1765897176648,3.24,128.55,128.52,7.38e-06]
[1765897176847,3.24,128.52,128.48,7.0065]
[1765897177047,66.04,128.51,128.48,7.0065]
[1765897177251,66.04,128.51,128.49,3.17]
[1765897177458,66.09721274,128.51,128.49,10.22703863]
[1765897177840,66.09721274,128.51,128.5,1.89824481]
[1765897178243,3.24,128.5,128.49,0.05123863]
[1765897178853,66.09721274,128.51,128.49,0.05123863]
[1765897179146,69.33721274,128.51,128.49,0.05123863]
[1765897179652,76.34211274,128.51,128.49,0.05123863]
[1765897179853,3.24,128.5,128.49,0.05123863]
[1765897180039,73.10211274,128.51,128.49,0.05123863]
[1765897180242,76.34211274,128.51,128.49,0.05123863]
[1765897180448,3.24,128.5,128.49,0.05123863]
[1765897181545,11.02373286,128.5,128.49,0.00123863]
[1765897183853,7.0061,128.49,128.43,10.1788]
[1765897184068,66.06,128.48,128.47,1.89942057]
[1765897184366,69.3,128.48,128.47,1.89942057]
[1765897185157,66.06,128.48,128.47,1.89942057]
[1765897186457,66.06,128.48,128.46,10.22667268]
[1765897187155,0.05182957,128.49,128.47,3.17]
[1765897187352,0.05182957,128.49,128.48,1.89688136]
[1765897188262,0.05182957,128.49,128.48,5.06688136]
[1765897188463,0.05182957,128.49,128.47,7.007]
[1765897188850,0.05182957,128.49,128.47,10.177]
[1765897189960,0.05182957,128.49,128.48,3.17]
[1765897190262,0.05182957,128.49,128.47,10.177]
[1765897190453,0.05182957,128.49,128.48,3.17]
[1765897191661,0.05182957,128.49,128.48,10.1765]
[1765897192166,0.05182957,128.49,128.48,7.0065]
[1765897193055,0.00182957,128.49,128.48,10.1765]
[1765897194754,0.00182957,128.49,128.48,11.7365]
[1765897195267,66.08,128.56,128.5,3.17]
[1765897195468,69.32,128.56,128.53,1.89698475]
[1765897195954,69.32,128.56,128.53,8.90058475]
[1765897196154,69.37810095,128.56,128.53,7.06168754]
[1765897196657,66.13810095,128.56,128.54,8.90025311]
[1765897196859,66.13810095,128.56,128.55,1.89661875]
[1765897197562,0.05810095,128.56,128.55,3.17]
[1765897198364,66.06,128.61,128.57,3.17]
[1765897198365,69.3,128.61,128.57,3.17]
[1765897198874,69.3,128.61,128.57,10.1713]
[1765897199072,3.24,128.6,128.54,112.1023]
[1765897199365,0.05333109,128.58,128.57,5.0669405]
[1765897199670,3.29333109,128.58,128.56,0.05630905]
[1765897200372,66.06,128.61,128.58,3.17]
[1765897200556,3.24,128.65,128.59,10.1701]
[1765897200758,3.24,128.65,128.6,1.89468804]
[1765897200969,3.24,128.63,128.55,112.1003]
[1765897201273,3.24,128.63,128.58,1.89622099]
[1765897201567,3.2933569,128.62,128.59,0.05636932]
[1765897201954,0.0533569,128.62,128.6,1.89288217]
[1765897202157,0.0533569,128.62,128.61,5.06247823]
[1765897202359,0.0533569,128.62,128.61,3.17]
[1765897202566,0.0533569,128.62,128.59,108.95006932]
[1765897202567,3.24,128.67,128.59,108.95006932]
[1765897202771,3.24,128.66,128.63,1.88972277]
[1765897202967,3.24,128.66,128.62,1.88972277]
[1765897203169,3.24,128.66,128.61,1.88972277]
[1765897203473,3.24,128.72,128.66,3.17]
[1765897203662,0.05094288,128.7,128.68,1.94108994]
[1765897203855,0.05094288,128.7,128.68,0.05136717]
[1765897204059,3.15094288,128.7,128.68,0.05136717]
[1765897204271,3.1,128.69,128.6,112.2134]
[1765897204576,3.1,128.68,128.64,1.88872292]
[1765897205265,15.75754771,128.7,128.64,5.21872292]
[1765897205470,0.05157583,128.67,128.66,1.88872292]
[1765897205775,3.15157583,128.67,128.65,0.05291653]
[1765897206590,3.1,128.65,128.55,112.2552]
[1765897206757,3.1,128.63,128.59,1.88713845]
[1765897206959,111.9836,128.61,128.58,1.88713845]
[1765897207172,111.9836,128.61,128.52,3.33]
[1765897207173,10.1012,128.58,128.52,3.33]
[1765897207664,0.05923079,128.56,128.54,0.05079252]
[1765897208371,66.04,128.62,128.55,3.33]
[1765897208567,3.1,128.61,128.58,1.89023505]
[1765897209072,69.14,128.67,128.59,112.2241]
[1765897209262,3.1,128.66,128.63,1.8881466]
[1765897209566,0.05203257,128.64,128.63,1.8881466]
[1765897209766,3.15203257,128.64,128.63,1.8881466]
[1765897210072,3.15203257,128.64,128.62,0.0525236]
[1765897210365,0.05203257,128.64,128.63,1.88583929]
[1765897210569,0.05203257,128.64,128.62,0.0525236]
[1765897210570,3.15203257,128.64,128.62,0.0525236]
[1765897211066,10.15003257,128.64,128.62,0.0525236]
[1765897211270,3.1,128.63,128.54,112.2623]
[1765897211568,3.1,128.61,128.57,1.88800366]
[1765897211768,3.1,128.59,128.52,108.9503]
[1765897211968,15.75754771,128.61,128.56,1.88861494]
[1765897212170,3.1,128.6,128.57,1.88861494]
[1765897212375,0.0531863,128.6,128.57,0.05176277]
[1765897212666,0.0531863,128.6,128.58,5.2183664]
[1765897212870,0.0531863,128.6,128.59,1.8883664]
[1765897213068,0.0531863,128.6,128.58,3.33]
[1765897213371,0.0531863,128.6,128.58,10.3309]
[1765897213572,0.0531863,128.6,128.58,7.0009]
[1765897213772,0.0531863,128.6,128.59,1.88758196]
[1765897213974,0.0531863,128.6,128.57,0.05176277]
[1765897214164,3.1531863,128.6,128.57,0.05176277]
[1765897214768,3.1,128.59,128.57,0.05176277]
[1765897214969,0.0531863,128.6,128.57,0.05176277]
[1765897215370,3.1531863,128.6,128.57,0.05176277]
[1765897216483,3.1,128.57,128.48,3.33]
[1765897216674,3.1,128.54,128.51,1.89030955]
[1765897217374,10.1039,128.53,128.51,1.89030955]
[1765897217575,0.05689504,128.53,128.51,1.94687563]
[1765897217775,0.05689504,128.53,128.51,0.05656608]
[1765897217979,0.05689504,128.53,128.51,1.94845787]
[1765897218177,0.05689504,128.53,128.51,0.05656608]
[1765897218372,0.05689504,128.53,128.51,1.94847735]
[1765897218576,0.05689504,128.53,128.51,0.05656608]
[1765897218778,0.05689504,128.53,128.51,12.28287432]
[1765897218978,0.05689504,128.53,128.52,1.89170824]
[1765897219179,3.15689504,128.53,128.51,0.05656608]
[1765897219388,0.05689504,128.53,128.51,0.05656608]
[1765897219686,3.15689504,128.53,128.51,0.05656608]
[1765897220077,0.05689504,128.53,128.51,0.05656608]
[1765897220383,0.05689504,128.53,128.52,1.8915348]
[1765897220974,0.05689504,128.53,128.51,0.05656608]
[1765897221673,3.15689504,128.53,128.51,0.05656608]
[1765897222491,3.1,128.52,128.43,112.3571]
[1765897222677,3.1,128.5,128.48,1.89324178]
[1765897222978,66.04,128.51,128.47,1.89324178]
[1765897223180,66.04,128.51,128.48,1.89324178]
[1765897223181,3.1,128.5,128.48,1.89324178]
[1765897223389,3.1,128.5,128.44,109.0214]
[1765897223571,3.15480892,128.5,128.48,0.05254546]